Cogmind - Beta 15 @@@ ROGUE MODE // 2025.05.18 @ 22:36:00 Player: Palikka Result: Destroyed by H-71 Marshal with Heavy Mass Driver Performance ------------- Evolutions (5) 2500 Regions Visited (6) 1200 Robots Destroyed (52) 260 Value Destroyed (1801) 1801 Prototype IDs (0) 0 Alien Tech Used (0) 0 Bonus (1046) 1046 TOTAL SCORE: 6807 Bonus ------- Follower Combat Kills 279 Registered with UFD 300 Met Optimus in HQ 500 Friendly Fire -33 Cogmind --------- Core Integrity 0/1000 Matter 300/300 Energy 95/100 System Corruption 4% Temperature Cool (0) Movement Core (350) Ox6 Location -5/Factory Parts ------- > --- POWER (2) -------- (None) > --- PROPULSION (5) --- (None) > --- UTILITY (8) ------ Improved Heat Sink Large Storage Unit Improved Target Analyzer > --- WEAPON (2) ------- (None) > --- INVENTORY (15) --- Light Fission Core Advanced Heat Sink Advanced Heat Sink Huge Storage Unit Improved Terrain Scanner Advanced Force Field Heavy Plasma Cannon Coil Gun Coil Gun Coil Gun KE Penetrator Mass Driver Mass Driver Powered Hammer Peak State ------------ > --- POWER ------------ Neutrino Core Micro Fission Core > --- PROPULSION ------- Medium Treads Improved Medium Treads Armored Medium Treads Flexi-carbon Leg Compact Wheel > --- UTILITY ---------- Improved Heat Sink Advanced Heat Sink Large Storage Unit Advanced Signal Interpreter Terrain Scan Processor Improved Target Analyzer Transmission Jammer Improved Medium Armor Plating > --- WEAPON ----------- Heavy Phase Cannon Mass Driver > --- INVENTORY -------- Light Fission Core Advanced Heat Sink Huge Storage Unit Improved Terrain Scanner Improved Kinecellerator Advanced Force Field Heavy Plasma Cannon Coil Gun Coil Gun Coil Gun Coil Gun Coil Gun KE Penetrator Mass Driver Powered Hammer [Rating: 81] Favorites ----------- Power Ion Engine Engine Ion Engine Power Core Micro Fission Core Propulsion Light Treads Treads Light Treads Leg Flexi-carbon Leg Wheel Wheel Utility Large Storage Unit Device Improved Heat Sink Storage Large Storage Unit Processor Advanced Signal Interpreter Protection Makeshift Light Armor Plating Weapon Light Assault Rifle Energy Gun Field Laser Energy Cannon Particle Cannon Ballistic Gun Light Assault Rifle Ballistic Cannon Mass Driver Launcher Grenade Launcher Impact Weapon Powered Hammer Build | -11 -10 -10 -7 -5 -5 -5 ------- Run | Yrd Mat Sub Scr Fac Was Fac Slots Evolved 10 | . . . . 10 . . Power 1 | . . . . 1 . . Propulsion 3 | . . . . 3 . . Utility 6 | . . . . 6 . . Weapon . | . . . . . . . Parts Attached 74 | 7 12 3 . 31 6 15 Power 9 | 1 2 . . 3 . 3 Engine 5 | 1 2 . . . . 2 Core 4 | . . . . 3 . 1 Reactor . | . . . . . . . Propulsion 15 | 2 2 . . 10 . 1 Treads 8 | 1 2 . . 5 . . Leg 2 | . . . . 2 . . Wheel 5 | 1 . . . 3 . 1 Hover . | . . . . . . . Flight . | . . . . . . . Utility 30 | 2 5 2 . 10 5 6 Device 11 | 1 1 . . 4 2 3 Storage 5 | 1 3 . . . . 1 Processor 6 | . . . . 5 1 . Hackware . | . . . . . . . Protection 8 | . 1 2 . 1 2 2 Artifact . | . . . . . . . Weapon 20 | 2 3 1 . 8 1 5 Energy Gun 1 | . . . . 1 . . Energy Cannon 6 | . 2 1 . 2 1 . Ballistic Gun 9 | 2 . . . 4 . 3 Ballistic Cannon 2 | . . . . . . 2 Launcher 1 | . 1 . . . . . Special Weapon . | . . . . . . . Impact Weapon 1 | . . . . 1 . . Slashing Weapon . | . . . . . . . Piercing Weapon . | . . . . . . . Special Melee Weapon . | . . . . . . . Unidentified Prototypes . | . . . . . . . Parts Lost 29 | . . . . 15 . 14 Power 4 | . . . . 2 . 2 Propulsion 10 | . . . . 6 . 4 Utility 11 | . . . . 5 . 6 Weapon 4 | . . . . 2 . 2 Highest Loss Streak 13 | . . . . 5 . 13 To Critical Strikes 1 | . . . . 1 . . Average Backups 13 | 4 9 12 14 11 14 14 Power 1 | . 1 1 1 1 2 1 Propulsion . | 2 . 1 1 . . . Utility 5 | . 4 5 7 2 3 4 Weapon 6 | . 2 5 5 7 9 8 Tool/Special . | . . . . . . . Unused Backups 33 | . 8 . 6 6 1 12 Power 4 | . 2 . . 1 . 1 Propulsion 3 | . 3 . . . . . Utility 10 | . 2 . 4 2 1 1 Weapon 16 | . 1 . 2 3 . 10 Tool/Special . | . . . . . . . Average Slot Usage (%) 97 | . 100 100 100 88 100 98 Engine 9 | . 14 14 14 3 . 3 Core 3 | . . . . 6 11 6 Treads 22 | . 26 28 28 14 17 16 Leg 1 | . . . . 1 5 5 Wheel 2 | . 1 . . 4 5 4 Device 9 | . 13 3 . 16 11 14 Storage 10 | . 14 14 14 5 5 5 Processor 7 | . . . . 15 23 20 Protection 7 | . . 10 14 4 4 3 Energy Cannon 9 | . 12 14 14 1 10 7 Ballistic Gun 9 | . 13 14 14 5 . 1 Peak Build Rating 81 | 9 12 13 15 73 77 81 Average Rating 34 | 5 10 11 14 52 76 76 On Entrance 28 | . 9 11 13 15 73 77 Naked Turns . | . . . . . . . Heaviest Build 76 | 11 31 37 34 50 75 76 Greatest Support 85 | 20 40 40 40 85 85 85 Greatest Overweight (x) 7 | . 1 . . 4 7 7 Average Overweight (x) 1 | . . . . 1 6 4 Largest Inventory Capacity 25 | 8 25 15 15 15 15 15 Average Capacity 14 | 7 10 15 15 15 15 15 Most Carried 15 | 8 13 13 15 15 15 15 Average Carried 13 | 4 9 12 14 11 14 14 Final Capacity 15 | 8 15 15 15 15 15 15 Final Carried 15 | 8 12 13 15 14 15 14 Class Distribution -------------------- 59% | Mutant 31% | Scavenger-Mutant 9% | Scavenger-Assassin Dominant Class ---------------- Mutant | -10/Materials Mutant | -10/Subcaves Mutant | -7/Scraptown Scavenger-Mutant | -5/Factory Scavenger-Mutant | -5/Waste Scavenger-Mutant | -5/Factory Resources | -11 -10 -10 -7 -5 -5 -5 ----------- Run | Yrd Mat Sub Scr Fac Was Fac Matter Collected 2241 | 284 373 43 150 749 208 434 Remotely . | . . . . . . . Salvage Created 2622 | 87 864 42 . 948 . 681 Parts 91 | 6 30 5 . 38 . 12 Haulers Intercepted 5 | . 2 . . 2 . 1 Recyclers Shooed 6 | 1 3 . . 1 . 1 Parts Field Recycled . | . . . . . . . Retrieved Matter . | . . . . . . . Parts Self-Destructed 9 | . . 9 . . . . Prevented . | . . . . . . . Kills | -11 -10 -10 -7 -5 -5 -5 ------- Run | Yrd Mat Sub Scr Fac Was Fac Combat Hostiles Destroyed 33 | . 13 3 . 11 . 6 Guns 13 | . 3 1 . 9 . . Cannons 13 | . 5 2 . . . 6 AOE 5 | . 5 . . . . . Classes Destroyed 12 | 2 5 1 . 3 . 1 Worker 1 | . . . . 1 . . Builder 1 | . 1 . . . . . Tunneler 2 | 1 . . . 1 . . Hauler 5 | . 2 . . 2 . 1 Recycler 6 | 1 3 . . . . 2 Watcher 4 | . 3 . . 1 . . Swarmer 3 | . . 3 . . . . Grunt 17 | . 10 . . 4 . 3 Sentry 3 | . . . . . . 3 Hunter 3 | . . . . 3 . . Programmer 4 | . . . . 4 . . Subdweller 3 | . 3 . . . . . Best Kill Streak 5 | 2 4 3 . 3 . 5 Combat Bots Only 4 | . 3 3 . 2 . 4 Max Kills in Single Turn 1 | 1 1 1 . 1 . 1 Gunslinging . | . . . . . . . Exploded 1 | . 1 . . . . . Melee . | . . . . . . . Uniques/NPCs Destroyed . | . . . . . . . Combat | -11 -10 -10 -7 -5 -5 -5 -------- Run | Yrd Mat Sub Scr Fac Was Fac Hostile Shots Fired 301 | . 49 27 . 137 . 88 Missed 75 | . 13 13 . 24 . 25 Hits 226 | . 36 14 . 113 . 63 Projectile 226 | . 36 14 . 113 . 63 AOE 1 | . . . . 1 . . Critical Strikes 12 | . 1 . . 8 . 3 Damage Taken 5183 | 4 616 110 . 2089 . 2364 Core 1289 | . 192 45 . 385 . 667 Absorbed by Shields . | . . . . . . . Regen/Repaired (Parts) 123 | . . . . . 123 . Core Remaining (%) 52 | 100 . . 5 . . . Volleys Fired 165 | 7 58 3 . 72 . 25 Largest 2 | 2 2 2 . 2 . 2 Hottest 137 | 40 88 88 . 131 . 137 Shots Fired 305 | 14 101 6 . 136 . 48 Gun 174 | 14 50 3 . 107 . . Cannon 117 | . 37 3 . 29 . 48 Launcher 14 | . 14 . . . . . Special . | . . . . . . . Kinetic 191 | 14 50 3 . 101 . 23 Thermal 100 | . 37 3 . 35 . 25 Explosive 14 | . 14 . . . . . Electromagnetic . | . . . . . . . Robot Hit Streak 24 | 7 24 10 . 19 . 13 Robot Miss Streak 5 | 3 5 . . 5 . 2 Penetration Max 1 | . . . . 1 . . Secondary Targets 1 | . . . . 1 . . Max Gunslinging Chain 1 | . . . . 1 . . Shots Hit Robots 192 | 8 62 4 . 84 . 34 Core Hits 96 | 4 40 3 . 33 . 16 Critical Kills 5 | . . . . 4 . 1 Critical Parts Destroyed 6 | . . . . 6 . . Critical Strikes 17 | . . . . 11 . 6 Burn 1 | . . . . 1 . . Meltdown 2 | . . . . 1 . 1 Destroy 9 | . . . . 9 . . Blast 5 | . . . . . . 5 Melee Attacks 12 | . . . . 12 . . Impact 12 | . . . . 12 . . Slashing . | . . . . . . . Piercing . | . . . . . . . Sneak Attacks . | . . . . . . . Combat Hostiles . | . . . . . . . Follow-up Attacks . | . . . . . . . Damage Inflicted 4733 | 80 1456 74 . 1891 . 1232 Guns 1715 | 72 234 6 . 1403 . . Cannons 2351 | . 571 68 . 488 . 1224 Explosions 651 | . 651 . . . . . Melee . | . . . . . . . Ramming 16 | 8 . . . . . 8 Kinetic 2111 | 72 234 6 . 1295 . 504 Thermal 1955 | . 571 68 . 596 . 720 Explosive 651 | . 651 . . . . . Electromagnetic . | . . . . . . . Impact . | . . . . . . . Slashing . | . . . . . . . Piercing . | . . . . . . . Highest Corruption 4 | . 1 1 . 4 4 4 Average Corruption 2 | . 1 1 . 3 4 4 Corruption Purged . | . . . . . . . Corruption Blocked . | . . . . . . . Effects 81 | . 10 . . 27 18 26 Message Errors 19 | . 1 . . 8 3 7 Matter Fused 16 | . 3 . . 3 3 7 Heat Flow Errors 7 | . 1 . . . 4 2 Energy Discharges 12 | . 1 . . 3 4 4 Parts Rejected 2 | . . . . 2 . . Parts Fused 2 | . 1 . . . 1 . Data Loss (minor) 8 | . 1 . . 4 1 2 Data Loss (major) 7 | . 1 . . 3 2 1 Misfires 3 | . 1 . . 2 . . Alerts 2 | . . . . 1 . 1 Weapon Failures 3 | . . . . 1 . 2 Overload Shots . | . . . . . . . Overflow Damage 50 | . 45 3 . . . 2 Projectiles 20 | . 15 3 . . . 2 Explosions 30 | . 30 . . . . . Melee . | . . . . . . . Knockbacks 2 | . . . . . . 2 Impact . | . . . . . . . Kinetic 2 | . . . . . . 2 Secondary . | . . . . . . . Self-Inflicted Damage 48 | 4 44 . . . . . Shots 2 | . 2 . . . . . Rammed 2 | 1 . . . . . 1 Targets Rammed 3 | 1 . . . . . 2 Kicked 1 | . . . . . . 1 Crushed . | . . . . . . . Highest Temperature 317 | . 252 18 . 294 260 317 Average Temperature 80 | . 68 13 . 62 102 118 Received Heat Transfer 657 | . 219 48 . 228 . 162 Effects 1 | . . . . 1 . . Energy Bleed 1 | . . . . 1 . . Siege Activations . | . . . . . . . Martial Activations . | . . . . . . . Shielding Activations . | . . . . . . . Robots Disrupted . | . . . . . . . Combat Hostiles . | . . . . . . . Robots Corrupted . | . . . . . . . Combat Hostiles . | . . . . . . . Parts Fried . | . . . . . . . Impact Corruptions . | . . . . . . . Robots Melted 3 | . . . . 2 . 1 Combat Hostiles 2 | . . . . 2 . . Parts Melted 15 | . 3 . . 9 . 3 Heat Transferred 2812 | . 1036 111 . 888 . 777 Parts Sabotaged . | . . . . . . . Parts Stolen . | . . . . . . . Parts Stripped . | . . . . . . . Power Chain Reactions . | . . . . . . . Alert | -11 -10 -10 -7 -5 -5 -5 ------- Run | Yrd Mat Sub Scr Fac Was Fac Maximum Alert Level . | . . . . . . . Low Security (%) 100 | 100 100 . . 100 100 100 Level 1 . | . . . . . . . Level 2 . | . . . . . . . Level 3 . | . . . . . . . Level 4 . | . . . . . . . Level 5 . | . . . . . . . High Security . | . . . . . . . Max Security . | . . . . . . . Peak Influence 106 | 10 85 . . 47 52 106 Initial 1 | . . . . . 1 . Average 16 | . 22 . . 10 5 24 Influence Increases 1409 | 10 430 105 . 384 96 384 Destroy 0b10 Robot/C 660 | . 200 60 . 220 . 180 Destroy 0b10 Robot/NC 100 | 10 45 . . 25 . 20 Destroy Leader 168 | . 60 . . 56 . 52 Allied During Kill 42 | . . . . . . 42 Successful Hack 55 | . 31 . . 24 . . Disable Machine 60 | . 45 . . 15 . . Destroy Structure 219 | . 49 . . 44 96 30 Lose Combat Pursuer 105 | . . 45 . . . 60 Influence Decreases 1409 | 10 430 10 95 379 101 384 Entered New Map 99 | . . . 95 . 4 . Time Decay 932 | 10 381 10 . 288 77 166 Lost Part 204 | . . . . 91 . 113 Lost Ally 125 | . . . . . 20 105 Purge Threat 49 | . 49 . . . . . Squads Dispatched 9 | . 1 . . 5 . 3 Investigation 2 | . 1 . . 1 . . Extermination 4 | . . . . 3 . 1 Reinforcement 3 | . . . . 1 . 2 Assault . | . . . . . . . Garrison . | . . . . . . . Intercept . | . . . . . . . Searches Triggered . | . . . . . . . Construction Impeded . | . . . . . . . Haulers Reinforced 1 | . . . . 1 . . Active Scanning Responses . | . . . . . . . Cargo Convoy Interrupts 1 | . . . . . . 1 Stealth | -11 -10 -10 -7 -5 -5 -5 --------- Run | Yrd Mat Sub Scr Fac Was Fac Distress Signals 2 | . 2 . . . . . Communications Jammed 9 | . . . . 2 . 7 Distress Signals 8 | . . . . 2 . 6 Times Spotted 68 | . 20 8 . 18 3 19 Peak Tracking Total 6 | . 3 6 . 2 3 6 Tactical Retreats 4 | . . 1 . . . 3 Traps | -11 -10 -10 -7 -5 -5 -5 ------- Run | Yrd Mat Sub Scr Fac Was Fac Traps Triggered 6 | . 3 . . 2 . 1 Indirectly . | . . . . . . . Trap Hack Attempts . | . . . . . . . Triggered . | . . . . . . . Disarmed . | . . . . . . . Reprogrammed . | . . . . . . . Reused . | . . . . . . . Traps Extracted . | . . . . . . . Installed . | . . . . . . . Triggered . | . . . . . . . Machines | -11 -10 -10 -7 -5 -5 -5 ---------- Run | Yrd Mat Sub Scr Fac Was Fac Machines Disabled 4 | . 3 . . 1 . . Max in Single Turn 1 | . 1 . . 1 . . Machines Repaired . | . . . . . . . Machines Dismantled . | . . . . . . . Machines Sabotaged . | . . . . . . . Overloaded Fab Kills . | . . . . . . . Hacking | -11 -10 -10 -7 -5 -5 -5 --------- Run | Yrd Mat Sub Scr Fac Was Fac Machines Accessed 16 | . 7 . 5 3 . 1 Terminals 10 | . 7 . . 2 . 1 Fabricators . | . . . . . . . Repair Stations 1 | . . . . 1 . . Recycling Units . | . . . . . . . Scanalyzers . | . . . . . . . Garrison Access . | . . . . . . . Total Hacks 55 | . 19 . 26 9 . 1 Successful 45 | . 15 . 26 4 . . Failed 10 | . 4 . . 5 . 1 Catastrophic 1 | . 1 . . . . . Database Lockouts . | . . . . . . . Manual 12 | . 8 . . 3 . 1 Terminals 25 | . 19 . . 5 . 1 Fabricators . | . . . . . . . Repair Stations 4 | . . . . 4 . . Recycling Units . | . . . . . . . Scanalyzers . | . . . . . . . Garrison Access . | . . . . . . . Terminal Hacks 36 | . 8 . 26 2 . . Record 26 | . . . 26 . . . Robot Analysis 1 | . 1 . . . . . Emergency Access Points 1 | . . . . 1 . . Alert Level 2 | . 1 . . 1 . . Unreport Threat 1 | . 1 . . . . . Locate Traps 3 | . 3 . . . . . Zone Layout 2 | . 2 . . . . . Fabricator Hacks . | . . . . . . . Repair Station Hacks 1 | . . . . 1 . . Scan Component 1 | . . . . 1 . . Recycling Unit Hacks . | . . . . . . . Scanalyzer . | . . . . . . . Garrison Access Hacks . | . . . . . . . Unauthorized Hacks 8 | . 7 . . 1 . . Terminals 8 | . 7 . . 1 . . Track 5 | . 4 . . 1 . . Botnet 3 | . 3 . . . . . Fabricators . | . . . . . . . Repair Stations . | . . . . . . . Recycling Units . | . . . . . . . Scanalyzers . | . . . . . . . Garrison Access . | . . . . . . . Data Cores Recovered . | . . . . . . . Used . | . . . . . . . Hacking Detections 10 | . 6 . . 3 . 1 Full Trace Events 1 | . . . . 1 . . Feedback Events . | . . . . . . . Feedback Blocked . | . . . . . . . Robot Schematics Acquired . | . . . . . . . Robots Built . | . . . . . . . Authchips . | . . . . . . . Time . | . . . . . . . Total Robot Build Rating . | . . . . . . . Part Schematics Acquired . | . . . . . . . Parts Built . | . . . . . . . Authchips . | . . . . . . . Time . | . . . . . . . Total Part Build Rating . | . . . . . . . Parts Repaired . | . . . . . . . Time . | . . . . . . . Parts Recycled . | . . . . . . . Recycled Matter . | . . . . . . . Retrieved Matter . | . . . . . . . Retrieved Components . | . . . . . . . Parts Scanalyzed . | . . . . . . . Part Schematics Acquired . | . . . . . . . Parts Damaged . | . . . . . . . Bothacking | -11 -10 -10 -7 -5 -5 -5 ------------ Run | Yrd Mat Sub Scr Fac Was Fac Used RIF Installer . | . . . . . . . Robots Hacked . | . . . . . . . Non-combat . | . . . . . . . Combat . | . . . . . . . Robot Hacks Applied . | . . . . . . . Relay Couplers Released . | . . . . . . . Fabnet Peak Effective % . | . . . . . . . Robots Rewired . | . . . . . . . Allies Hacked . | . . . . . . . Hacks Repelled . | . . . . . . . Allies | -11 -10 -10 -7 -5 -5 -5 -------- Run | Yrd Mat Sub Scr Fac Was Fac Total Allies 19 | . . . . . 19 . Largest Group 19 | . . . . . 19 10 Highest-Rated Group 684 | . . . . . 684 430 Highest-Rated Ally 50 | . . . . . 50 50 Total Orders . | . . . . . . . Ally Attacks 148 | . . . . . 112 36 Total Damage 6100 | . . . . . 5150 950 Kills 16 | . . . . . 12 4 Allies Corrupted 2 | . . . . . . 2 Allies Melted . | . . . . . . . Intel | -11 -10 -10 -7 -5 -5 -5 ------- Run | Yrd Mat Sub Scr Fac Was Fac Active Infowar (turns) 3108 | 18 148 . . 1784 86 1072 Sensors 1126 | . . . . 1126 . . Terrain 2126 | 18 148 . . 1247 16 697 Jamming 2447 | . . . . 1782 83 582 Robot Analysis Total 1 | . 1 . . . . . Derelict Logs Recovered . | . . . . . . . Drone Launches . | . . . . . . . Drone Recoveries . | . . . . . . . Exploration | -11 -10 -10 -7 -5 -5 -5 ------------- Run | Yrd Mat Sub Scr Fac Was Fac Turns Passed 8569 | 101 1530 323 3061 1788 654 1112 Spaces Moved 4635 | 63 860 173 1823 842 325 549 Core 1 | 1 . . . . . . Treads 3352 | 3 781 173 1823 516 3 53 Legs 5 | . . . . . . 5 Wheels 1277 | 59 79 . . 326 322 491 Hover . | . . . . . . . Flight . | . . . . . . . Fastest Speed 50 | 50 100 160 160 110 140 145 Average Speed 159 | 102 154 160 160 152 180 167 Slowest Speed 260 | 160 240 160 160 250 185 260 Overloaded Moves . | . . . . . . . Propulsion Burnouts . | . . . . . . . Robots Hopped . | . . . . . . . Potential Cave-ins . | . . . . . . . Cave-ins Triggered . | . . . . . . . Exploration Rate (%) 48 | 5 97 16 94 19 95 12 Regions Visited 6 Branch Regions 2 Pre-discovered Areas . | . . . . . . . Known Exits Taken . | . . . . . . . Unknown Exits Taken 4 | 1 1 1 1 . . . Scrap Searched 4 | . . . 4 . . . Spaces Dug 17 | . 3 . . 14 . . Terrain Destroyed 96 | . 58 . . 23 . 15 Melee 11 | . . . . 11 . . Projectile 27 | . . . . 12 . 15 AOE 58 | . 58 . . . . . Terrain Rammed . | . . . . . . . Walls Destroyed . | . . . . . . . Machines Disabled . | . . . . . . . Actions | -11 -10 -10 -7 -5 -5 -5 --------- Run | Yrd Mat Sub Scr Fac Was Fac Total 5530 | 85 975 212 1972 1192 395 699 Wait 476 | . 9 33 132 178 52 72 Move 4631 | 63 859 172 1822 842 324 549 Hop . | . . . . . . . Pick Up 67 | 8 14 . 10 21 3 11 Fast Attach 38 | 7 2 . . 20 3 6 Attach 21 | . 1 . . 17 1 2 Detach 8 | . 1 . . 4 2 1 Swap 48 | . 13 4 . 14 5 12 Drop 62 | . 18 . 8 12 5 19 Fire 165 | 7 58 3 . 72 . 25 Melee 12 | . . . . 12 . . Ram . | . . . . . . . Kick 1 | . . . . . . 1 Crush 1 | . . . . . . 1 Escape Stasis . | . . . . . . . Rewire . | . . . . . . . Trap . | . . . . . . . Miscellaneous . | . . . . . . . Route ------- -11/Scrapyard -10/Materials (discovered 5 exits: [*Mat x3] / [*Min] / [*Sub]) -10/Subcaves (discovered 3 exits: [*Mat] / [*Rec] / *Scr) -7/Scraptown (discovered 2 exits: *Fac x2) -5/Factory -5/Waste -5/Factory (discovered 1 exit: *Fac) History --------- Turn | Location | Event 23 | -11/Scrapyard | Discovered new exit (range 16) 102 | -11/Scrapyard | Entered Materials 285 | -10/Materials | Discovered new exit (range 15) 333 | -10/Materials | Build established: Mutant 702 | -10/Materials | Derelicts attacked the area 740 | -10/Materials | Discovered new exit (range 15) 785 | -10/Materials | Core integrity fell below 50% 844 | -10/Materials | Discovered new exit (range 15) 1219 | -10/Materials | Discovered new exit (range 4) 1619 | -10/Materials | Discovered new exit (range 10) 1632 | -10/Materials | Entered Subcaves 1633 | -10/Subcaves | Approached by a straggling Scientist 1769 | -10/Subcaves | Discovered new exit (range 5) 1822 | -10/Subcaves | Shifting Twisted Machinery released Mak. Light Armor Plating 1931 | -10/Subcaves | Shifting Twisted Machinery released Flamer 1936 | -10/Subcaves | Scientist uncovered a shortcut to Scraptown 1941 | -10/Subcaves | Core integrity fell below 20% 1950 | -10/Subcaves | Discovered new exit (range 14) 1955 | -10/Subcaves | Entered Scraptown 1955 | -7/Scraptown | System corruption cleaned by C-Scrubber 2510 | -7/Scraptown | Discovered new exit (range 11) 2561 | -7/Scraptown | Heard Great Nut preacher, LISTEN AND RECITE! 2622 | -7/Scraptown | Visited Spacefarers 2724 | -7/Scraptown | Visited Symbiants 2767 | -7/Scraptown | Visited Cyclists 2943 | -7/Scraptown | Visited CPS Storage 2991 | -7/Scraptown | Visited UFD Registry 2991 | -7/Scraptown | Registered with UFD as "Ionrider" 3007 | -7/Scraptown | Visited Cave Peace 3473 | -7/Scraptown | Visited IN-MT5's Study 3500 | -7/Scraptown | Visited SPCMW 3783 | -7/Scraptown | Entered Cyclist Reading Room 3887 | -7/Scraptown | Visited Scrapoid Research Area 3965 | -7/Scraptown | Visited Scrap Suit Storage 4010 | -7/Scraptown | Visited Curators Association 4233 | -7/Scraptown | Visited Science Testing Area 4261 | -7/Scraptown | Visited Scrapoid Pod Storage 4303 | -7/Scraptown | Visited Research Penetration Think Tank 4345 | -7/Scraptown | Visited Junk Repository 4435 | -7/Scraptown | Visited Abandonware Association 4459 | -7/Scraptown | Learned abandonware demo "REPAIR.EXE" 4459 | -7/Scraptown | Learned abandonware demo "POISON.EXE" 4502 | -7/Scraptown | Visited LU-1G1's Boring Crew 4579 | -7/Scraptown | Visited Supply Room 4909 | -7/Scraptown | Met Optimus 4909 | -7/Scraptown | Accepted into 0bPrime 5006 | -7/Scraptown | Discovered new exit (range 5) 5016 | -7/Scraptown | Entered Factory 5016 | -5/Factory | Evolved 10 slots: Power x1, Propulsion x3, Utility x6 5352 | -5/Factory | Build established: Scavenger-Assassin 5505 | -5/Factory | Discovered new exit (range 16) 5656 | -5/Factory | Lost 3 parts (1p1u1w) 5773 | -5/Factory | Lost 5 parts (1p2n2u) 5918 | -5/Factory | Build established: Scavenger-Mutant 6483 | -5/Factory | Lost 5 parts (3n2u) 6804 | -5/Factory | Sucked down chute 6804 | -5/Factory | Entered Waste 6836 | -5/Waste | Warlord forces began an assault 6992 | -5/Waste | Spotted C-40 Crusher 6992 | -5/Waste | Spotted C-40 Crusher 6997 | -5/Waste | Spotted C-40 Crusher 7001 | -5/Waste | Allies destroyed C-40 Crusher 7003 | -5/Waste | Allies destroyed C-40 Crusher 7013 | -5/Waste | Allies destroyed C-40 Crusher 7021 | -5/Waste | Spotted C-40 Crusher 7026 | -5/Waste | Allies destroyed C-40 Crusher 7042 | -5/Waste | Lost 6 allies 7421 | -5/Waste | Discovered new exit (range 13) 7455 | -5/Waste | Identified exit to Factory 7458 | -5/Waste | Entered Factory 7458 | -5/Factory | Accompanied by 10 allies 8174 | -5/Factory | P-70 Sage assimilated allied IU-BAD(g) 8191 | -5/Factory | Cargo convoy interrupted 8275 | -5/Factory | Discovered new exit (range 13) 8551 | -5/Factory | Core integrity fell below 50% 8555 | -5/Factory | Identified exit to Factory 8560 | -5/Factory | Core integrity fell below 20% 8570 | -5/Factory | Destroyed by H-71 Marshal with Heavy Mass Driver Last Messages --------------- 08555_ Knocked back. 08559_ U-05 Engineer builds a Wall. 08559_ Penetrated by Slug. 08559_ Knocked back. 08561_ U-05 Engineer builds a Wall. 08562_ Penetrated by Slug. 08562_ Coil Gun destroyed. 08562_ Knocked back. 08563_ Adv. Signal Interpreter destroyed. 08565_ Coil Gun destroyed. 08565_ Knocked back. 08565_ U-05 Engineer builds a Wall. 08566_ Neutrino Core destroyed. 08567_ Kicked H-71 Marshal. 08568_ H-71 Marshal call for reinforcements jammed. 08568_ R-10 Processor collects Arm. Medium Treads. 08569_ Transmission Jammer destroyed. 08569_ Knocked back. 08570_ U-05 Engineer builds a Wall. 08570_ Flexi-carbon Leg destroyed. Map ----- +----------------------------------------------------+ | """ """ #% #?# """" """" ### ##???#?? | | """ """ # % ### """" """" ### ##?#?? ? | | """ """ # ]! ###! ### #?##???? | | "" "" # ! ################## ##??#??? | | "" "" # ! ! #?########?###???# ##???? ? | | # #########?#??#?### ##?#???? | | ##?#####?############?############?## #?????? | | #####??##?#############??#?#?###?#?## ###??? ? | | ?##???######?##?####?##?###?##?#????# #?#????? | | ##?????##?###?#??#?#####??#?##????#?# #??#??? | | #??####?##?##??#?###?##??#####?##???# ##?#???# | | #??#?#?####?????#?####??##?#?????######## ######## | | ??###??####?##?####?###############?????# # | | ?????#?####???#?####?##?# #?????# # """" | | ?????#???????####??####?# ####### # """" | | ??#???#???##?#?#?#?#?#??# # ##" # """" | | ????#????##??#??##?#????# / %+= "" | | ???????????#?#???##?????# # # | | ???????????????##????#??# | #### % %######## | | ???????????????#??#?????# / % ###?# | | ???????????????????????##%% H ####*= #?#?# | | ???????????????????????#"#+#####+### #![==##### | | ??????????????????????####%###?# #?###%%!! / % | | ??????????????????????##[xR u#?# #???#=##/##### | | ??????????????????????##u H ### #T"##%# ## | | ??????????????????????## @H R x + ## | | ???????????????????????# # ## ## | | ???????????????????????#% % # % ## """ ## | | ???????????????????????####### ## """ ##### | | ?????????????????????????????# ## """ ####? | | ?????????????????????????????# ## #???? | | ?????????????????????????????+ ## #???? | | ?????????????????????????????# #######???? | | ?????????????????????????????# ???????????? | | ?????????????????????????????# ????????????? | | ?????????????????????????????# ????????????? | | ?????????????????????????????# ????????????? | | ?????????????????????????????# ^ ????????????? | | ??????????????????????????????? ?? ??????????????? | | ?????????????????????????????????????????????????? | | ?????????????????????????????????????????????????? | | ?????????????????????????????????????????????????? | | ?????????????????????????????????????????????????? | | ?????????????????????????????????????????????????? | | ?????????????????????????????????????????????????? | | ?????????????????????????????????????????????????? | | ?????????????????????????????????????????????????? | | ?????????????????????????????????????????????????? | | ?????????????????????????????????????????????????? | | ?????????????????????????????????????????????????? | +----------------------------------------------------+ Best States ------------- Heat Dissipation 73 Energy Generation 29 Energy Capacity 400 Matter Stores 300 Matter Capacity 300 Sight Range 16 Robot Scan Range 15 Terrain Scan Range 16 Terrain Scan Density 85 Jamming Range 12 Armor Coverage 250 Evasion (%) 40 Targeting Accuracy 5 Target Analysis 9 Recoil Reduction 3 Kinecelleration 40 Item Schematics ----------------- None Robot Schematics ------------------ None Fabricated ------------ Nothing Repaired ---------- Nothing Alien Tech Used ----------------- None Achievements -------------- None Challenges ------------ None Game ------ Seed ProcessingMyomerRipteeth Manual? 0 Play Time 01:14:28 Cumulative 377.4 hours Start 2025.05.18 @ 21:15:24 End 2025.05.18 @ 22:36:00 Sessions 1 Manual Loads 0 Difficulty Rogue Special Mode None Game No. 445 Rogue 445 Adventurer 0 Explorer 0 Win Type - Total 37 Types 27/0/7/3/0/0/0/0/0/0 Lore% 71 Gallery% 69 Achievement% 61 Wizard Run 0 Options --------- Layout 0 ASCII 0 Keyboard 1 Movement Numpad Keybinds 0 Fullscreen 1 Font 24/Smallcaps Map View 76x50 Zoom Use 0% Tactical HUD 1 Map Filters NONE Filters NONE Steam 1 RUN: f30baf31-ddb7-41bd-9825-254363edb7f1